bitfinex-derivatives/quotes_ETHF0:USTF0_20251009
["timestamp","ask_amount","ask_price","bid_price","bid_amount"]
[1759973324550,4.4208496,4484.1,4484.0,2.239]
[1759973327544,3.8872496,4484.1,4484.0,2.239]
[1759973329546,3.4859196,4484.1,4484.0,2.239]
[1759973329752,0.8280908,4484.6,4484.5,2.235]
[1759973329753,0.00220479,4484.6,4484.5,2.235]
[1759973330450,0.00220479,4484.6,4484.5,3.06088601]
[1759973330647,3.2078,4485.3,4485.2,1.9182]
[1759973331056,6.12256566,4485.3,4485.2,2.31943]
[1759973331557,6.12422009,4485.3,4485.2,2.31943]
[1759973333961,6.69492009,4485.3,4485.2,1.9182]
[1759973334152,6.12422009,4485.3,4485.2,1.9182]
[1759973335051,0.00165443,4485.3,4485.2,5.126]
[1759973335869,0.00165443,4485.3,4485.2,5.78956592]
[1759973336468,3.2078,4485.9,4485.8,0.5418]
[1759973336671,3.2078,4485.9,4485.8,1.9182]
[1759973337066,3.2078,4485.9,4485.8,2.31938]
[1759973337266,0.40116,4486.0,4485.9,1.9182]
[1759973337468,0.97411983,4486.0,4485.9,1.9206516]
[1759973337669,3.81341863,4486.0,4485.9,1.9206516]
[1759973337868,4.34701863,4486.0,4485.9,1.9206516]
[1759973338875,4.34701863,4486.0,4484.5,1.0723]
[1759973338876,1.9676,4484.6,4484.5,1.0723]
[1759973339168,2.36883,4485.3,4485.2,1.0723]
[1759973339570,0.40126,4484.9,4484.8,1.2963]
[1759973339774,2.36886,4484.9,4484.8,1.0723]
[1759973340070,2.36886,4484.9,4484.8,1.29834885]
[1759973340470,3.03242592,4484.9,4484.8,1.07434885]
[1759973340671,6.14254846,4484.9,4484.8,0.00204885]
[1759973340877,9.35034846,4484.9,4484.8,0.00204885]
[1759973342868,1.82234,4484.0,4483.9,3.2078]
[1759973343070,3.57320592,4484.0,4483.9,3.2078]
[1759973343270,6.49424641,4484.0,4483.9,3.2078]
[1759973343873,6.49424641,4484.0,4483.0,0.3168]
[1759973343874,0.40138,4483.6,4483.5,1.3891]
[1759973344077,0.40138,4483.6,4483.5,2.23750842]
[1759973344276,3.8102657,4483.6,4483.5,2.23750842]
[1759973344881,5.2071657,4483.6,4483.5,1.92070842]
[1759973345286,5.4311657,4483.6,4483.5,0.00250842]
[1759973346686,5.4311657,4483.6,4483.5,1.39020842]
[1759973346877,5.4311657,4483.6,4483.5,1.92070842]
[1759973347177,4.5678657,4483.6,4483.5,2.23750842]
[1759973347874,5.4311657,4483.6,4483.5,1.92070842]
[1759973348075,5.2071657,4483.6,4483.5,2.23750842]
[1759973349183,0.224,4483.7,4483.6,1.9107]
[1759973349184,0.40137,4483.7,4483.6,1.9107]
[1759973350483,0.92387,4483.7,4483.6,1.9107]
[1759973355090,4.13161,4484.4,4484.3,1.9107]
[1759973355584,6.98366433,4484.4,4484.3,1.9107]
[1759973356481,7.51256433,4484.4,4484.3,1.9107]
[1759973356686,8.32956433,4484.4,4484.3,0.5751]
[1759973356876,1.82036,4484.1,4483.7,0.224]
[1759973357078,1.8684,4483.8,4483.7,2.1347]
[1759973357478,4.78979973,4483.8,4483.7,2.1347]
[1759973357685,5.19115973,4483.8,4483.7,1.1267]
[1759973357881,2.26977,4483.7,4483.6,0.5751]
[1759973358186,5.10539804,4483.7,4483.6,0.5751]
[1759973359591,5.10539804,4483.7,4483.5,0.00250842]
[1759973360391,5.32939804,4483.7,4483.5,0.00250842]
[1759973363090,5.10539804,4483.7,4483.5,0.00250842]
[1759973363289,1.2754,4483.6,4483.5,0.00250842]
[1759973363487,2.0924,4483.6,4483.5,0.00250842]
[1759973363695,4.97610668,4483.6,4483.5,0.00250842]
[1759973365491,4.97610668,4483.6,4483.5,0.57760842]
[1759973365692,3.40620668,4483.6,4483.5,2.23650842]
[1759973365889,3.28508668,4483.6,4483.5,2.23650842]
[1759973366090,0.40137,4483.7,4483.6,2.31208]
[1759973366289,2.26971,4484.3,4484.2,1.9107]
[1759973366593,5.15802978,4484.3,4484.2,1.9107]
[1759973369493,5.70598978,4484.3,4484.2,1.1267]
[1759973370483,5.70598978,4484.3,4484.2,1.9107]
[1759973371489,5.70598978,4484.3,4483.5,1.45250842]
[1759973371490,0.817,4484.1,4483.5,1.45250842]
[1759973371795,1.0514,4483.8,4483.7,0.5751]
[1759973371995,2.26977,4483.7,4483.6,0.224]
[1759973372192,2.26977,4483.7,4483.6,1.5831]
[1759973372593,2.05460317,4483.7,4483.6,1.9107]
[1759973372896,0.70870317,4483.7,4483.6,1.9107]
[1759973373196,1.52570317,4483.7,4483.6,1.9107]
[1759973374896,2.05460317,4483.7,4483.6,1.9107]
[1759973375898,5.5500279,4483.7,4483.6,0.5751]
[1759973376896,5.5500279,4483.7,4483.6,1.3591]
[1759973377800,0.40138,4483.6,4483.5,0.00250842]
[1759973378001,2.81849853,4483.6,4483.5,0.00250842]
[1759973378205,5.67509181,4483.6,4483.5,0.00250842]
[1759973379498,5.67509181,4483.6,4483.5,0.57760842]
[1759973380096,5.67509181,4483.6,4483.5,1.89870842]
[1759973382700,0.95009853,4483.6,4483.5,2.62779842]
[1759973382901,0.95009853,4483.6,4483.5,2.22640842]
[1759973383097,0.95428,4483.6,4483.5,2.22640842]
[1759973383906,1.78028,4483.6,4483.5,2.22640842]
[1759973384202,0.95428,4483.6,4483.5,2.22640842]
[1759973385307,0.95428,4483.6,4483.5,2.45040842]
[1759973385707,1.78028,4483.6,4483.5,2.45040842]
[1759973386309,0.95428,4483.6,4483.5,2.45040842]
[1759973389705,0.95428,4483.6,4483.5,2.85179842]
[1759973390209,0.40138,4483.6,4483.5,2.85179842]
[1759973390409,0.40137,4483.8,4483.7,1.8603]
[1759973391820,0.40137,4483.8,4483.7,2.0843]
[1759973397022,0.40137,4483.8,4483.7,2.48567]
[1759973397222,5.1359,4484.5,4484.4,1.8603]
[1759973397517,5.90974407,4484.5,4484.4,1.8603]
[1759973397821,9.23226607,4484.5,4484.4,1.8603]
[1759973398723,9.00826607,4484.5,4484.4,1.8603]
[1759973400224,0.5529,4483.6,4483.5,0.77950842]
[1759973400422,2.32948,4483.6,4483.5,1.86280842]
[1759973400721,2.32948,4483.6,4483.5,2.08680842]
[1759973401124,2.32948,4483.6,4483.5,1.30980842]
[1759973401729,2.32948,4483.6,4483.5,1.08580842]
[1759973402325,5.1741613,4483.6,4483.5,0.00250842]
[1759973403227,5.72407902,4483.6,4483.5,0.00250842]
[1759973403425,0.3292,4482.5,4482.4,3.2078]
[1759973403725,2.65882,4482.0,4481.9,3.7386]
[1759973403923,2.65882,4482.0,4481.9,3.2078]
[1759973404124,5.75405361,4482.0,4481.9,3.2078]
[1759973404325,5.75655396,4482.0,4481.9,0.00249594]
[1759973404728,5.13103396,4482.0,4481.9,1.08579594]
[1759973404929,0.00250035,4482.0,4481.9,1.86279594]
[1759973405933,0.00250035,4482.0,4481.9,2.08679594]
[1759973406631,1.38140035,4482.0,4481.9,2.08679594]
[1759973406823,0.00250035,4482.0,4481.9,2.08679594]
[1759973407225,2.25980035,4482.0,4481.9,2.08679594]
[1759973407427,2.25980035,4482.0,4481.9,1.30979594]
[1759973408232,5.09413081,4482.0,4481.9,0.00249594]
[1759973408724,5.31813081,4482.0,4481.9,0.00249594]
[1759973410229,10.31813081,4482.0,4481.9,0.00249594]
[1759973410431,5.09413081,4482.0,4481.9,0.00249594]
[1759973410737,5.31813081,4482.0,4481.9,0.00249594]
[1759973411935,5.31813081,4482.0,4481.9,0.56349594]
[1759973412137,5.31813081,4482.0,4481.9,0.00249594]
[1759973413033,2.2132,4481.0,4480.9,5.1912]
[1759973413234,2.2132,4481.0,4480.9,3.2078]
[1759973413436,5.13439907,4481.0,4480.9,3.2078]
[1759973413939,5.13439907,4481.0,4480.9,3.77107143]
[1759973414335,5.13439907,4481.0,4480.9,5.05447143]
[1759973414733,5.13439907,4481.0,4480.9,0.00227143]
[1759973414932,5.96181506,4481.0,4480.9,0.00227143]
[1759973415133,6.18581506,4481.0,4480.9,0.00227143]
[1759973415938,5.35839907,4481.0,4480.9,0.56327143]
[1759973416240,5.25528146,4481.0,4480.9,0.56327143]
[1759973416544,2.92119907,4481.0,4480.9,1.84667143]
[1759973416743,2.92119907,4481.0,4480.9,5.05447143]
[1759973417239,0.8348,4481.3,4481.2,1.0722]
[1759973417240,1.74998,4481.3,4481.2,1.0722]
[1759973417436,1.74998,4481.3,4481.2,1.8444]
[1759973417735,3.85335039,4481.3,4481.2,1.8444]
[1759973418141,4.68815039,4481.3,4481.2,1.8444]
[1759973418842,0.40157,4481.4,4481.2,1.0722]
[1759973419039,1.74997,4481.4,4481.3,1.8444]
[1759973419238,2.31107,4481.4,4481.3,1.8444]
[1759973419537,2.31107,4481.4,4481.3,1.0722]
[1759973419733,4.75816536,4481.4,4481.3,0.96258]
[1759973419934,4.75816536,4481.4,4481.3,2.24598]
[1759973421241,5.15973536,4481.4,4481.3,2.24598]
[1759973421541,5.15973536,4481.4,4481.3,1.8444]
[1759973421743,5.15973536,4481.4,4481.3,1.0722]
[1759973422042,2.61481,4481.0,4480.9,3.21007143]
[1759973422236,2.61481,4481.0,4480.9,0.00227143]
[1759973422436,2.61481,4481.0,4479.9,1.00427]
[1759973422437,5.37747755,4481.0,4479.9,3.2078]
[1759973422737,2.2132,4480.0,4479.9,4.28]
[1759973422940,1.9095,4480.0,4479.9,5.0522]
[1759973423138,4.83133496,4480.0,4479.9,5.0522]
[1759973423338,2.92183496,4480.0,4479.9,5.0522]
[1759973423641,0.3037,4481.0,4479.9,5.0522]
[1759973423642,1.6521,4481.0,4480.9,1.0722]
[1759973423841,1.5724,4481.0,4480.9,1.8444]
[1759973424036,4.42847037,4481.0,4480.9,1.8444]
[1759973424239,4.20447037,4481.0,4480.9,1.8444]
[1759973424543,3.36967037,4481.0,4480.9,1.8444]
[1759973424743,2.85607037,4481.0,4480.9,1.8444]
[1759973425139,1.9095,4481.1,4481.0,1.2834]
[1759973425345,1.9095,4481.1,4481.0,1.8444]
[1759973425543,4.81907141,4481.1,4481.0,1.8444]
[1759973426040,0.3037,4481.5,4481.0,1.0968]
[1759973426235,2.61477,4481.5,4481.4,1.8444]
[1759973426640,5.49499147,4481.5,4481.4,1.8444]
[1759973426850,4.78972147,4481.5,4481.4,1.8444]
[1759973427142,5.09342147,4481.5,4481.4,1.0722]
[1759973427345,4.78972147,4481.5,4481.4,1.8444]
[1759973427553,2.88022147,4481.5,4481.4,1.8444]
[1759973427846,0.00250035,4482.0,4481.9,1.8444]
[1759973428038,1.35090035,4482.0,4481.9,2.0684]
[1759973428245,0.00250035,4482.0,4481.9,2.0684]
[1759973429549,0.00250035,4482.0,4481.9,5.2762]
[1759973430545,2.21570035,4482.0,4481.9,1.8444]
[1759973430748,0.40157,4481.5,4481.2,0.40159]
[1759973430949,1.9095,4481.1,4481.0,3.2078]
[1759973431642,0.8348,4480.9,4480.7,0.40163]
[1759973431844,1.78001,4481.0,4480.7,0.96263]
[1759973431845,1.9095,4480.8,4480.7,0.96263]
[1759973432142,4.79406041,4480.8,4480.7,2.24603]
[1759973432351,1.9095,4480.8,4480.7,1.0722]
[1759973432950,1.9095,4480.8,4480.7,1.8444]
[1759973433847,0.8348,4481.4,4480.8,1.77628]
[1759973434051,5.1173,4481.5,4481.4,1.8444]
[1759973434251,5.421,4481.5,4481.4,1.8444]
[1759973434447,8.26876865,4481.5,4481.4,1.8444]
[1759973435757,6.56916865,4481.5,4481.4,1.8444]
[1759973435948,7.96506865,4481.5,4481.4,1.8444]
[1759973436256,8.26876865,4481.5,4481.4,1.8444]
[1759973438547,7.96506865,4481.5,4481.4,1.8444]
[1759973441252,8.36663865,4481.5,4481.4,1.8444]
[1759973441955,8.69393865,4481.5,4481.4,1.0722]
[1759973442552,8.69393865,4481.5,4481.4,1.8416]
[1759973442952,8.36663865,4481.5,4481.4,1.8416]
[1759973443761,6.97073865,4481.5,4481.4,1.8416]
[1759973444152,7.74183865,4481.5,4481.4,1.8416]
[1759973444352,8.58003865,4481.5,4481.4,1.0722]
[1759973445463,2.22725,4480.6,4480.5,5.2592]
[1759973445652,0.5259,4480.6,4480.5,5.96156]
[1759973445852,2.3592,4481.0,4480.9,1.8274]
[1759973446052,2.0496,4481.0,4480.9,1.8274]
[1759973446256,4.95079558,4481.0,4480.9,1.8274]
[1759973446564,5.12840558,4481.0,4480.9,1.8274]
[1759973446754,5.35240558,4481.0,4480.9,1.8274]
[1759973447064,5.12840558,4481.0,4480.9,1.8274]
[1759973447760,2.22725,4480.6,4480.5,3.7252]
[1759973448152,5.12284527,4480.6,4480.5,5.0352]
[1759973448758,2.89559527,4480.6,4480.5,5.73756]
[1759973448959,0.40165,4480.7,4480.6,2.22904]
[1759973449657,0.40165,4480.7,4480.6,1.8274]
[1759973450057,1.69865,4480.7,4480.6,1.8274]
[1759973450361,2.22725,4480.7,4480.6,1.8274]
[1759973451461,0.62562,4480.9,4480.6,2.22905]
[1759973451761,0.22273699,4579.4,4480.5,3.7325]
[1759973451762,0.40159,4481.2,4481.1,1.8274]
[1759973452058,2.22714,4481.8,4481.7,1.8274]
[1759973452263,0.40159,4481.2,4481.1,5.2592]
[1759973452461,1.69859,4481.2,4481.1,5.2592]
[1759973452765,0.5259,4481.2,4481.1,5.2592]
[1759973453158,0.40159,4481.3,4481.2,1.8274]
[1759973453863,1.69859,4481.3,4481.2,1.8274]
[1759973455557,2.22719,4481.3,4481.2,1.8274]
[1759973455959,1.69859,4481.3,4481.2,1.8274]
[1759973456767,1.297,4481.3,4481.2,1.8274]
[1759973457460,0.40159,4481.2,4481.1,3.2078]
[1759973457661,0.40159,4481.2,4479.9,0.00229846]
[1759973457662,2.5369,4480.0,4479.9,0.00229846]
[1759973457866,5.7447,4480.0,4479.9,0.00229846]
[1759973458163,8.61283235,4480.0,4479.9,0.00229846]
[1759973458960,0.7711,4478.8,4478.4,0.8085]
[1759973459161,0.40175,4479.5,4479.4,0.5015]
[1759973459367,0.40175,4479.5,4479.4,1.8274]
[1759973459566,3.29534777,4479.5,4479.4,1.8274]
[1759973459860,3.42152022,4479.5,4479.4,1.83004153]
[1759973460067,2.89562022,4479.5,4479.4,5.03784153]
[1759973460265,8.23862022,4479.5,4479.4,0.00264153]
[1759973460566,0.00202245,4479.5,4479.4,1.83004153]
[1759973462566,0.00202245,4479.5,4478.6,3.7252]
[1759973462567,0.5259,4478.7,4478.6,3.7252]
[1759973462767,1.8256,4478.7,4478.6,5.0352]
[1759973463258,1.8256,4478.7,4478.0,0.3007]
[1759973463259,2.83918719,4478.7,4478.5,0.5015]
[1759973463461,2.83918719,4478.7,4478.6,1.8274]
[1759973463661,2.83918719,4478.7,4478.6,1.82922422]
[1759973464262,0.40178,4479.2,4478.9,0.8085]
[1759973464457,0.40178,4479.2,4479.1,1.8274]
[1759973465169,1.69878,4479.2,4479.1,1.8274]
[1759973465664,2.22738,4479.2,4479.1,1.8274]
[1759973466872,1.8256,4479.2,4479.1,1.8274]
[1759973467165,0.5259,4479.2,4479.1,1.8274]
[1759973467866,0.40177,4479.3,4479.2,0.8085]
[1759973468067,1.69877,4479.3,4479.2,1.8274]
[1759973468267,4.62682785,4479.3,4479.2,1.8274]
[1759973468467,5.15542785,4479.3,4479.2,1.8274]
[1759973469959,4.75365785,4479.3,4479.2,1.8274]
[1759973470160,0.40168,4480.3,4479.4,1.3188]
[1759973470378,0.40167,4480.4,4480.2,1.0491]
[1759973470562,5.13830025,4480.4,4480.3,1.0491]
[1759973470872,2.18977,4480.4,4480.3,1.0491]
[1759973471269,2.19237537,4480.4,4480.3,1.0491]
[1759973471465,2.19237537,4480.4,4480.3,1.8527]
[1759973472565,1.7881,4479.9,4479.8,0.5339]
[1759973472766,8.67844536,4480.4,4479.9,0.8036]
[1759973473070,0.40167,4480.3,4480.2,1.8527]
[1759973473272,0.92577,4480.3,4480.2,1.8527]
[1759973474771,0.95770537,4480.4,4480.2,8.06217463]
[1759973474968,1.00359,4483.0,4481.3,0.40157]
[1759973475161,1.00359,4483.0,4482.0,3.2078]
[1759973475162,0.5241,4482.1,4482.0,3.2078]
[1759973475361,3.36535556,4482.1,4482.0,3.2078]
[1759973475568,0.5241,4482.1,4482.0,3.2078]
[1759973475764,0.52632426,4482.1,4482.0,3.2078]
[1759973475969,3.39283837,4482.1,4482.0,3.2105546]
[1759973476662,3.90903837,4482.1,4482.0,3.2105546]
[1759973476870,4.65683837,4482.1,4482.0,3.2105546]
[1759973477468,2.0875,4481.5,4481.4,3.2078]
[1759973477663,2.0875,4481.5,4480.0,2.13459951]
[1759973477664,1.0403,4480.9,4480.8,0.224]
[1759973477878,1.7881,4480.9,4480.8,0.224]
[1759973478073,1.2719,4480.8,4480.7,3.2078]
[1759973478374,4.6393609,4480.8,4480.7,3.4318]
[1759973478573,4.6393609,4480.8,4480.7,3.43420027]
[1759973480171,3.5990609,4480.8,4480.7,3.43420027]
[1759973480475,1.0472,4481.0,4480.9,0.40162]
[1759973482372,0.2994,4481.0,4480.7,5.79883485]
[1759973482771,0.2994,4481.0,4480.8,0.40163]
[1759973483074,0.7478,4480.9,4480.8,0.40163]
[1759973483276,0.7478,4480.9,4480.8,0.62563]
[1759973484176,0.2994,4481.0,4480.8,0.62563]
[1759973484563,1.0472,4481.0,4480.8,0.62563]
[1759973484769,0.7478,4480.9,4480.8,0.62563]
[1759973485069,0.2994,4481.5,4480.8,5.62563]
[1759973485274,1.0472,4481.5,4481.4,3.60937]
[1759973485474,1.0472,4481.5,4481.4,3.83337]
[1759973487166,1.5713,4481.5,4481.4,3.2078]
[1759973487371,5.0147104,4481.5,4481.4,3.4318]
[1759973487873,5.0147104,4481.5,4481.4,3.2078]
[1759973488377,10.0147104,4481.5,4481.4,3.2078]
[1759973488678,1.7881,4480.8,4480.7,3.21020027]
[1759973488972,1.7881,4480.8,4480.7,3.43420027]
[1759973493078,0.7478,4480.8,4480.7,3.43420027]
[1759973493482,1.0472,4481.0,4480.8,0.40163]
[1759973493676,1.0472,4481.0,4480.9,0.224]
[1759973495485,1.0472,4481.0,4480.9,5.224]
[1759973496180,0.7478,4481.4,4481.0,1.00403]
[1759973496379,0.7478,4481.4,4481.3,3.60938]
[1759973496583,0.2994,4481.5,4481.3,3.83338]
[1759973496983,1.0472,4481.5,4481.3,3.83338]
[1759973497682,0.2994,4481.5,4481.3,3.83338]
[1759973497870,0.7478,4481.4,4481.3,3.83338]
[1759973498269,1.0472,4482.0,4481.9,0.40153]
[1759973498474,1.5713,4482.0,4481.9,3.83333]
[1759973500185,1.0472,4482.0,4481.9,3.83333]
[1759973507390,0.94582724,4482.0,4481.9,3.83333]
[1759973508686,1.6111,4481.5,4481.4,3.60937]
[1759973508884,2.1531,4481.5,4481.4,3.4318]
[1759973509484,2.1531,4481.5,4481.4,3.83337]
[1759973509684,2.1531,4481.5,4481.4,3.4318]
[1759973510794,1.1044,4481.5,4481.4,3.4318]
[1759973511289,2.1531,4481.5,4481.4,3.2078]
[1759973511489,2.1531,4481.5,4481.4,3.4318]
[1759973511890,5.42463563,4481.5,4481.1,0.4016]
[1759973512194,2.1531,4481.0,4480.9,3.2078]
[1759973512487,5.02306563,4481.0,4480.9,3.2078]
[1759973518998,5.02306563,4481.0,4480.7,0.00240027]
[1759973519198,2.23743,4480.8,4480.7,0.00240027]
[1759973519502,5.07568496,4480.8,4480.7,0.00240027]
[1759973519797,10.29968496,4480.8,4480.7,0.00240027]
[1759973522295,0.719,4480.0,4479.9,3.2078]
[1759973522493,1.8358,4479.6,4479.5,0.40174]
[1759973523003,1.8358,4479.6,4479.5,0.62574]
[1759973523004,3.67828395,4479.6,4479.5,0.62574]
[1759973523300,0.7871,4479.6,4479.5,0.62574]
[1759973523501,0.7871,4479.6,4479.5,0.62744307]
[1759973525896,0.7871,4479.6,4479.5,5.62744307]
[1759973528198,1.2938,4479.6,4479.5,5.62744307]
[1759973528797,0.7871,4479.6,4479.5,5.62744307]
[1759973530902,1.3028,4479.6,4479.5,0.62744307]
[1759973531100,4.7122306,4479.6,4479.5,0.00170307]
[1759973531399,4.7122306,4479.6,4479.5,0.62744307]
[1759973531806,1.8275,4479.6,4479.5,0.62744307]
[1759973532104,0.7871,4479.6,4479.5,0.62744307]
[1759973537599,1.1062,4480.0,4479.9,0.40171]
[1759973537798,1.1062,4480.0,4479.9,3.83351]
[1759973542901,0.3173,4480.0,4479.9,3.83351]
[1759973543303,0.7889,4480.3,4480.2,0.40168]
[1759973543499,0.7889,4480.3,4480.2,0.62568]
[1759973543705,0.3173,4480.5,4480.4,0.40166]
[1759973544004,1.1062,4480.5,4480.4,3.83346]
[1759973545605,1.00545234,4480.5,4480.4,3.83346]
[1759973548012,0.21655234,4480.5,4480.4,3.83346]
[1759973548710,1.00545234,4480.5,4480.4,3.83346]
[1759973550211,0.21655234,4480.5,4480.4,3.83346]
[1759973550607,1.00545234,4480.5,4480.4,3.83346]
[1759973551108,0.3173,4481.0,4480.9,0.40162]
[1759973551314,0.7889,4481.3,4481.2,0.40159]
[1759973551608,1.1062,4481.5,4481.4,0.40157]
[1759973551815,1.1062,4481.5,4481.4,3.83337]
[1759973555714,0.3096,4482.0,4481.9,0.40153]
[1759973555919,1.0985,4482.0,4481.9,3.83333]
[1759973556408,0.7889,4482.0,4481.9,3.83333]
[1759973556616,1.6142,4482.0,4481.9,3.83333]
[1759973557215,2.1389,4482.0,4481.9,3.2078]
[1759973557411,0.3096,4481.5,4481.4,3.2078]
[1759973557616,1.6142,4481.5,4481.4,3.4318]
[1759973557818,1.6142,4481.5,4481.4,3.83337]
[1759973558121,2.1389,4481.5,4481.4,3.83337]
[1759973561717,1.6181,4481.5,4481.4,3.83337]
[1759973562916,1.0985,4481.5,4481.4,3.83337]
[1759973563117,0.3096,4481.5,4481.4,3.83337]
[1759973563317,1.0387,4481.5,4481.4,3.83337]
[1759973563520,0.3096,4481.5,4481.4,3.83337]
[1759973563714,0.7291,4481.8,4481.7,0.40155]
[1759973563915,1.2236,4481.8,4481.7,0.62555]
[1759973565522,1.39834,4481.8,4481.4,3.60937]
[1759973565711,2.42897,4481.5,4481.4,3.2078]
[1759973565912,2.42897,4481.5,4480.9,3.2078]
[1759973565913,1.2983,4481.0,4480.9,3.2078]
[1759973566125,2.0274,4481.0,4480.9,3.2078]
[1759973566323,4.86883268,4481.0,4480.9,3.2078]
[1759973566626,1.2983,4480.5,4480.4,3.2078]
[1759973566812,1.91870075,4480.5,4480.4,3.2078]
[1759973567013,4.82808991,4480.5,4480.4,3.2078]
[1759973568218,1.91870075,4480.5,4480.4,3.2078]
[1759973569417,1.91870075,4480.5,4480.4,3.4318]
[1759973570524,0.40169,4480.2,4479.9,3.2078]
[1759973570721,2.0274,4480.0,4479.9,3.2078]
[1759973570922,2.0274,4480.0,4479.9,3.4318]
[1759973576129,9.94554679,4480.0,4479.9,3.2078]
[1759973576426,0.9968,4479.6,4479.5,0.00170307]
[1759973576623,1.7259,4479.6,4479.5,0.00170307]
[1759973578541,0.7291,4479.6,4479.5,0.22570307]
[1759973581436,1.2236,4479.6,4479.5,0.22570307]
[1759973581934,1.7259,4479.6,4479.5,0.00170307]
[1759973582140,0.7291,4479.6,4479.5,0.22570307]
[1759973582741,0.7291,4480.4,4479.7,1.00433]
[1759973582942,0.7291,4480.4,4480.3,0.40167]
[1759973583236,1.7259,4480.2,4479.7,0.40172]
[1759973583439,1.5251,4480.0,4479.9,0.40171]
[1759973583640,1.5251,4480.0,4479.9,3.60951]
[1759973585535,1.0306,4480.0,4479.9,3.60951]
[1759973587640,2.0274,4480.0,4479.9,0.224]
[1759973588039,0.3015,4480.0,4479.9,3.4318]
[1759973588335,1.5251,4480.0,4479.9,3.4318]
[1759973588537,2.0274,4480.0,4479.9,3.2078]
[1759973588742,2.0274,4480.0,4479.9,3.4318]
[1759973588934,1.5251,4480.0,4479.9,3.2078]
[1759973589136,1.5251,4480.0,4479.9,4.09700478]
[1759973589345,1.0306,4480.0,4479.9,4.09700478]
[1759973590945,1.0306,4480.0,4479.9,4.49871478]
[1759973592046,1.0306,4480.0,4479.9,4.09700478]
[1759973592240,1.5378,4480.0,4479.9,4.09700478]
[1759973592542,1.7728,4479.6,4479.5,0.00170307]
[1759973592736,2.17454,4479.6,4479.5,0.00170307]
[1759973593039,2.17454,4479.6,4478.9,3.4318]
[1759973593040,2.46839,4479.0,4478.9,3.4318]
[1759973594046,2.46839,4479.0,4478.9,0.22670975]
[1759973594342,2.46839,4479.0,4478.9,0.00270975]
[1759973594845,2.0666,4479.0,4478.9,0.00270975]
[1759973596142,2.46843,4478.5,4478.4,3.2078]
[1759973596343,2.0666,4478.5,4478.4,3.2078]
[1759973596547,4.91735681,4478.5,4478.4,3.2078]
[1759973597038,4.91967885,4478.5,4478.4,3.20983676]
[1759973597240,2.46848,4478.0,4477.9,3.23013215]
[1759973597640,10.42669421,4478.0,4477.9,3.23013215]
[1759973598141,10.65069421,4478.0,4477.9,3.23246308]
[1759973598649,10.65069421,4478.0,4477.9,0.02466308]
[1759973599440,10.65069421,4478.0,4477.3,3.2078]
[1759973599441,1.42923,4477.4,4477.3,3.2078]
[1759973599640,1.7728,4477.4,4477.3,3.2078]
[1759973599844,4.66685925,4477.4,4477.3,3.2078]
[1759973600349,0.2938,4476.5,4476.3,3.2078]
[1759973600650,1.7728,4476.4,4476.3,0.00276452]
[1759973600844,1.7728,4476.4,4476.3,0.29836452]
[1759973600845,4.73865702,4476.4,4476.3,0.29836452]
[1759973601350,0.7455,4476.4,4476.3,0.29836452]
[1759973601546,0.7455,4476.4,4476.3,0.39076452]
[1759973601853,1.2527,4476.4,4476.3,0.29836452]
[1759973603148,0.7455,4476.4,4476.3,0.29836452]
[1759973603750,1.2527,4476.4,4476.3,0.29836452]
[1759973604253,0.7455,4476.4,4476.3,0.29836452]
[1759973604457,1.7728,4476.4,4476.3,0.29836452]
[1759973604756,1.2527,4476.4,4476.3,0.9635693]
[1759973604951,1.2527,4476.4,4476.3,0.29836452]
[1759973605856,0.7455,4476.4,4476.3,0.29836452]
[1759973607253,1.2527,4476.4,4476.3,0.29836452]
[1759973608254,5.0375567,4476.4,4476.3,0.00276452]
[1759973608552,5.0375567,4476.4,4476.3,0.15056452]
[1759973608754,4.6355367,4476.4,4476.3,0.15056452]
[1759973609448,0.40198,4476.9,4476.4,0.40202]
[1759973609653,0.90918,4476.9,4476.8,0.96080478]
[1759973609853,1.42928,4476.9,4476.8,0.2956]
[1759973610049,1.4293,4476.7,4476.6,0.1478]
[1759973610348,2.1748,4476.7,4476.6,0.1478]
[1759973610549,1.7728,4476.7,4476.6,0.1478]
[1759973610949,1.7728,4476.7,4476.5,0.66520478]
[1759973610950,2.1748,4476.7,4476.5,0.66520478]
[1759973611154,1.7728,4476.4,4476.3,3.76039452]
[1759973611448,4.66985813,4476.4,4476.3,0.00276452]
[1759973612958,4.66985813,4476.4,4476.3,0.9635693]
[1759973613454,0.7455,4476.7,4476.4,0.0924]
[1759973613643,0.2938,4477.0,4476.9,0.69758]
[1759973613849,0.2938,4477.0,4476.9,1.36278478]
[1759973614151,4.43379167,4477.0,4476.9,1.36278478]
[1759973614851,1.0393,4477.0,4476.9,1.36278478]
[1759973615052,3.2078,4477.4,4477.3,0.40194]
[1759973615249,3.2078,4477.9,4477.8,0.1478]
[1759973615450,1.2527,4478.4,4478.3,0.2956]
[1759973615755,4.10530934,4478.4,4478.3,0.2956]
[1759973615955,1.2527,4478.4,4478.3,0.2956]
[1759973616153,4.17887611,4478.4,4478.3,0.2956]
[1759973616955,0.00232204,4478.5,4478.4,0.78984]
[1759973617152,0.00232204,4478.5,4478.4,1.45504478]
[1759973618057,0.7455,4479.2,4479.1,0.388]
[1759973618256,0.7455,4479.2,4479.1,0.612]
[1759973618856,0.00159721,4479.2,4479.1,0.612]
[1759973619956,0.78189721,4479.2,4479.1,0.612]
[1759973620156,0.00159721,4479.2,4479.1,0.612]
[1759973622560,0.00159721,4479.2,4479.1,5.612]
[1759973622860,1.0741,4480.0,4479.9,0.83741]
[1759973623055,1.0741,4480.0,4479.9,1.06141]
[1759973623656,1.0768873,4480.0,4479.9,1.06330469]
[1759973624465,2.1223873,4480.0,4479.9,0.16219469]
[1759973624960,2.1223873,4480.0,4479.9,0.00189469]
[1759973626657,2.1223873,4480.0,4479.9,0.16219469]
[1759973626857,2.1223873,4480.0,4479.9,0.32249469]
[1759973627056,1.5922873,4480.0,4479.9,0.32249469]
[1759973627464,2.1223873,4480.0,4479.9,0.32249469]
[1759973629365,2.1223873,4480.0,4479.9,0.16219469]